fUST/lending_fUST_20240924
["ID","MTS","AMOUNT","RATE_DAILY","PERIOD"]
[339000310,1727114835213,-49.86876585,0.00027743,2]
[339000311,1727114836106,-250.13123415,0.00027743,2]
[339000312,1727114836130,-500.0,0.00027744,2]
[339000313,1727114836153,-500.0,0.00027744,2]
[339000314,1727114836176,-500.0,0.00027744,2]
[339000315,1727114836198,-219.57289325,0.00027744,2]
[339000316,1727114836221,-191.0636548,0.00027744,2]
[339000317,1727114836242,-5007.53100691,0.00027745,2]
[339000318,1727114852153,-1758.86460395,0.00027745,2]
[339000319,1727114945112,-300.0,0.00027744,2]
[339000320,1727114945134,-300.0,0.00027744,2]
[339000321,1727114945155,-18133.60438914,0.00027745,2]
[339000322,1727114945175,-1751.571422,0.00027935,2]
[339000323,1727114945197,-250.0,0.00027976,2]
[339000324,1727114945219,-250.0,0.00028053,2]
[339000325,1727114945240,-250.0,0.0002813,2]
[339000326,1727114945260,-500.0,0.00028179,2]
[339000327,1727114945283,-500.0,0.00028179,2]
[339000328,1727114945302,-180.54195601,0.00028179,2]
[339000329,1727114945324,-500.0,0.00028179,2]
[339000330,1727114945345,-244.29893545,0.00028179,2]
[339000331,1727114945365,-1053.2644015,0.0002818,2]
[339000332,1727114945385,-250.0,0.00028206,2]
[339000333,1727114945406,-250.0,0.00028283,2]
[339000334,1727114945426,-301.7202192,0.00028291,2]
[339000335,1727114945446,-168.271222,0.00028303,2]
[339000336,1727114945467,-1872.87611664,0.00028337,2]
[339000337,1727114945488,-250.0,0.0002836,2]
[339000338,1727114945508,-11187.9157328,0.00028389,2]
[339000339,1727114945529,-132.2273939,0.00028437,2]
[339000340,1727114946097,-202.0361392,0.0002706,2]
[339000341,1727114955106,-117.7726061,0.00028437,2]
[339000342,1727114955131,-250.0,0.00028513,2]
[339000343,1727114955154,-250.0,0.0002859,2]
[339000344,1727114955175,-1751.571422,0.00028619,2]
[339000345,1727114955198,-250.0,0.00028667,2]
[339000346,1727114955221,-250.0,0.00028744,2]
[339000347,1727114955242,-250.0,0.0002882,2]
[339000348,1727114955263,-250.0,0.00028897,2]
[339000349,1727114955285,-250.0,0.00028974,2]
[339000350,1727114955307,-250.0,0.00029051,2]
[339000351,1727114955328,-250.0,0.00029127,2]
[339000352,1727114959120,-250.0,0.00029204,2]
[339000353,1727114959143,-250.0,0.00029281,2]
[339000354,1727114959165,-1751.571422,0.00029304,2]
[339000355,1727114959185,-250.0,0.00029358,2]
[339000356,1727114959207,-250.0,0.00029434,2]
[339000357,1727114959229,-151.0,0.0003,120]
[339000358,1727114959252,-1872.8761166,0.00030275,2]
[339000359,1727114959275,-178.937,0.00030365,25]
[339000385,1727115032111,-569.0,0.00032081,2]
[339000387,1727115032123,-3316.19863161,0.00032081,2]
[339000445,1727115038559,-58.67127719,0.00032081,2]
[339000446,1727115038571,-354.22799549,0.00032081,2]
[339000447,1727115038581,-165.0558695,0.000322,2]
[339000448,1727115038591,-1872.8761166,0.00032212,2]
[339000449,1727115038600,-155.7,0.00032319,7]
[339000450,1727115038609,-4298.0979043,0.00032447,2]
[339000451,1727115038619,-150.0,0.0003245,2]
[339000452,1727115038628,-165.25651587,0.00032656,2]
[339000453,1727115038637,-1113.81529106,0.00032676,2]
[339000454,1727115038647,-1000.0,0.00032698,2]
[339000455,1727115038657,-1000.0,0.00032702,2]
[339000456,1727115038666,-1000.0,0.00032727,2]
[339000457,1727115038676,-1000.0,0.0003273,2]
[339000458,1727115038686,-1000.0,0.00032736,2]
[339000459,1727115038695,-848.42,0.00032746,3]
[339000460,1727115038704,-163.59,0.00032746,3]
[339000461,1727115038714,-817.99,0.00032746,3]
[339000462,1727115038723,-500.0,0.00032755,2]
[339000463,1727115038733,-401.13540659,0.00032755,2]
[339000464,1727115038743,-183.03751038,0.00032755,2]
[339000465,1727115038752,-344.46700304,0.00032755,2]
[339000466,1727115038762,-500.0,0.00032755,2]
[339000467,1727115038771,-561.90088999,0.00032755,2]
[339000468,1727115038780,-500.0,0.00032755,2]
[339000469,1727115038898,-28323.715067,0.00032756,4]
[339000470,1727115038908,-57664.7147885,0.00032756,4]
[339000471,1727115038917,-165.25651586,0.00032756,2]
[339000472,1727115038927,-855.52247692,0.00032756,2]
[339000473,1727115038940,-18340.93424395,0.00032766,5]
[339000474,1727115038949,-150.234803,0.000328,2]
[339000475,1727115038958,-150.112233,0.000328,8]
[339000476,1727115038968,-1000.0,0.00032814,2]
[339000477,1727115038977,-478.79470768,0.00032815,2]
[339000478,1727115038986,-28323.715067,0.00032816,4]
[339000479,1727115038995,-57664.7147885,0.00032816,5]
[339000480,1727115039005,-159.70308505,0.00032816,30]
[339000481,1727115039014,-586.66743907,0.00032835,2]
[339000482,1727115039023,-28323.715067,0.00032835,4]
[339000483,1727115039034,-57664.7147885,0.00032835,5]
[339000484,1727115039043,-1000.0,0.00032841,2]
[339000485,1727115039052,-28323.715067,0.00032845,4]
[339000486,1727115039061,-57664.7147885,0.00032845,5]
[339000487,1727115039070,-56647.430134,0.00032846,4]
[339000488,1727115039080,-115329.429577,0.00032846,5]
[339000489,1727115039092,-56647.430134,0.00032846,4]
[339000490,1727115039101,-151.0,0.00032846,7]
[339000491,1727115039110,-151.0,0.00032846,7]
[339000492,1727115039120,-151.0,0.00032846,7]
[339000493,1727115039129,-151.0,0.00032846,7]
[339000494,1727115039139,-151.0,0.00032849,120]
[339000495,1727115039148,-1000.0,0.00032853,7]
[339000496,1727115039157,-1000.0,0.00032853,7]
[339000497,1727115039167,-584.22700737,0.00032853,7]
[339000498,1727115039177,-410.17205345,0.00032855,2]
[339000499,1727115039186,-12072.69584141,0.00032855,2]
[339000500,1727115039195,-28323.715067,0.00032855,4]
[339000501,1727115039204,-151.0,0.00032856,7]
[339000502,1727115039213,-151.0,0.00032856,7]
[339000503,1727115039223,-151.0,0.00032856,2]
[339000504,1727115039233,-151.0,0.00032856,7]
[339000505,1727115039242,-151.0,0.00032856,7]
[339000506,1727115039251,-267.112345,0.00032856,7]
[339000507,1727115039261,-267.112345,0.00032856,7]
[339000508,1727115039270,-151.0,0.00032856,7]
[339000509,1727115039281,-194.401146,0.00032856,7]
[339000510,1727115039291,-194.401146,0.00032856,7]
[339000511,1727115039300,-151.0,0.00032856,7]
[339000512,1727115039309,-151.0,0.00032856,7]
[339000513,1727115039319,-621.038581,0.00032856,2]
[339000514,1727115039328,-621.038581,0.00032856,2]
[339000515,1727115039338,-4890.245738,0.00032856,7]
[339000516,1727115039347,-4890.245738,0.00032856,7]
[339000517,1727115039357,-296.062367,0.00032856,7]
[339000518,1727115039366,-464.73645,0.00032856,7]
[339000519,1727115039376,-296.062367,0.00032856,7]
[339000520,1727115039385,-464.73645,0.00032856,7]
[339000521,1727115039395,-301.7847,0.00032856,7]
[339000522,1727115039405,-151.0,0.00032856,7]
[339000523,1727115039415,-301.7847,0.00032856,7]
[339000524,1727115039424,-3016.559643,0.00032856,7]
[339000525,1727115039433,-3016.559643,0.00032856,7]
[339000526,1727115039443,-246.205217,0.00032856,7]
[339000527,1727115039452,-246.205217,0.00032856,7]
[339000528,1727115039462,-504.308122,0.00032856,7]
[339000529,1727115039471,-504.308122,0.00032856,7]
[339000530,1727115039481,-1879.310267,0.00032856,7]
[339000531,1727115039491,-1879.310267,0.00032856,7]
[339000532,1727115039501,-664.349433,0.00032856,7]
[339000533,1727115039510,-1879.310267,0.00032856,7]
[339000534,1727115039519,-664.349433,0.00032856,7]
[339000535,1727115039528,-926.38343005,0.00032856,7]
[339000536,1727115039547,-952.92683695,0.00032856,7]
[339000537,1727115039556,-151.0,0.00032856,7]
[339000538,1727115039565,-151.0,0.00032856,7]
[339000539,1727115039575,-664.349433,0.00032856,7]
[339000540,1727115039585,-664.349433,0.00032856,7]
[339000541,1727115039594,-151.0,0.00032856,7]
[339000542,1727115039604,-151.0,0.00032856,7]
[339000543,1727115039613,-151.0,0.00032856,7]
[339000544,1727115039623,-151.0,0.00032856,7]
[339000545,1727115039632,-151.799614,0.00032856,7]
[339000546,1727115039642,-151.799614,0.00032856,7]
[339000547,1727115039652,-151.799614,0.00032856,7]
[339000548,1727115039661,-151.799614,0.00032856,7]
[339000549,1727115039671,-387.158911,0.00032856,7]
[339000550,1727115039681,-387.158911,0.00032856,7]
[339000552,1727115039691,-387.158911,0.00032856,7]
[339000554,1727115039701,-387.158911,0.00032856,7]
[339000556,1727115039711,-376.077064,0.00032856,7]
[339000557,1727115039721,-376.077064,0.00032856,7]
[339000558,1727115039731,-376.077064,0.00032856,7]
[339000559,1727115039740,-44.2948812,0.00032856,7]
[339000567,1727115040144,-331.7821828,0.00032856,7]
[339000568,1727115040153,-1354.484061,0.00032856,7]
[339000569,1727115040163,-1354.484061,0.00032856,7]
[339000570,1727115040174,-132.6496952,0.00032856,7]
[339000571,1727115040194,-2741.9585768,0.00032856,7]
[339000572,1727115040204,-1354.484061,0.00032856,7]
[339000573,1727115040213,-2257.45208898,0.00032856,7]
[339000600,1727115043457,-99.89074852,0.00032855,2]
[339000607,1727115046342,-1995.392904,0.000328,10]
[339000608,1727115046351,-2234.81394305,0.00032855,2]
[339000614,1727115085437,286.761851,0.00027397,2]
[339000618,1727115603139,160.94570368,0.00014973,2]
[339001284,1727116032137,-289.090426,0.00027397,2]
[339001285,1727116032159,-300.0,0.00028397,2]
[339001286,1727116032182,-300.0,0.00028397,2]
[339001287,1727116032204,-238.41185327,0.00028398,2]
[339001288,1727116032228,-500.0,0.00028398,2]
[339001289,1727116032253,-500.0,0.00028398,2]
[339001290,1727116032281,-500.0,0.00028398,2]
[339001291,1727116032306,-500.0,0.00028398,2]
[339001292,1727116032333,-250.0,0.00028398,2]
[339001293,1727116032355,-5603.65317931,0.00028399,2]
[339001294,1727116032391,-7720.09875536,0.00028399,2]
[339001295,1727116042141,-1788.07013863,0.00028399,2]
[339001296,1727116049111,-1039.15686098,0.00028399,2]
[339001299,1727116147129,-300.0,0.00028398,2]
[339001300,1727116147151,-300.0,0.00028398,2]
[339001301,1727116147174,-1900.52443121,0.00028399,2]
[339001302,1727116157153,-6848.49663451,0.00028399,2]
[339001303,1727116157176,-792.661381,0.00028498,2]
[339001304,1727116157197,-1124.09047292,0.000285,2]
[339001305,1727116161094,-1841.54794724,0.000285,2]
[339001306,1727116161118,-250.0,0.00028616,2]
[339001307,1727116161140,-250.0,0.00028695,2]
[339001308,1727116161162,-250.0,0.00028773,2]
[339001309,1727116161184,-250.0,0.00028852,2]
[339001310,1727116161205,-1218.5214767,0.00028911,2]
[339001311,1727116161226,-250.0,0.0002893,2]
[339001312,1727116161249,-36.80358729,0.00029009,2]
[339001313,1727116161274,-213.19641271,0.00029009,2]
[339001314,1727116161295,-250.0,0.00029087,2]
[339001315,1727116162115,-250.0,0.00029166,2]
[339001316,1727116162138,-792.661381,0.00029183,2]
[339001317,1727116162161,-250.0,0.00029244,2]
[339001318,1727116162183,-250.0,0.00029323,2]
[339001319,1727116162205,-250.0,0.00029401,2]
[339001320,1727116162226,-250.0,0.0002948,2]
[339001321,1727116162248,-250.0,0.00029558,2]
[339001322,1727116163847,268.048078,0.00029483,2]
[339001323,1727116172099,-250.0,0.00029637,2]
[339001324,1727116172123,-250.0,0.00029715,2]
[339001325,1727116172144,-250.0,0.00029794,2]
[339001326,1727116172166,-792.661381,0.00029868,2]
[339001327,1727116172189,-250.0,0.00029872,2]
[339001328,1727116172212,-26.56910424,0.00029951,2]
[339001370,1727116232292,-168.271222,0.00029709,2]
[339001371,1727116232302,-223.43089576,0.00029951,2]
[339001372,1727116232311,-151.0,0.0003,120]
[339001373,1727116232321,-151.0,0.0003,120]
[339001374,1727116232330,-250.0,0.00030029,2]
[339001375,1727116232339,-1592.82666246,0.00030052,2]
[339001384,1727116238504,-590.23642244,0.00030052,2]
[339001385,1727116238515,-250.0,0.00030108,2]
[339001386,1727116238525,-176.442,0.00030181,25]
[339001387,1727116238534,-400.0,0.00030656,2]
[339001388,1727116238544,-197.73339282,0.00031506,30]
[339001389,1727116238554,-411.8657486,0.00031798,35]
[339001390,1727116238563,-411.8657486,0.00031799,35]
[339001391,1727116238572,-411.8657486,0.000318,35]
[339001392,1727116238582,-411.8657486,0.0003181,35]
[339001393,1727116238592,-153.0,0.0003189,2]
[339001394,1727116238602,-400.0,0.00031899,2]
[339001395,1727116238611,-2105.48899551,0.000319,2]
[339001396,1727116238622,-250.0,0.00031999,2]
[339001397,1727116238631,-500.0,0.00031999,2]
[339001398,1727116238641,-500.0,0.00031999,2]
[339001399,1727116238650,-500.0,0.00031999,2]
[339001400,1727116238659,-158.26380045,0.00031999,2]
[339001401,1727116238668,-500.0,0.00031999,2]
[339001402,1727116238678,-500.0,0.00031999,2]
[339001403,1727116238687,-500.0,0.00031999,2]
[339001404,1727116238696,-500.0,0.00031999,2]
[339001405,1727116238706,-500.0,0.00031999,2]
[339001406,1727116238715,-19283.999999,0.00032,120]
[339001407,1727116238724,-306.0,0.00032027,2]
[339001408,1727116238733,-153.0,0.00032027,2]
[339001409,1727116238743,-153.0,0.00032027,2]
[339001410,1727116238752,-153.0,0.00032027,2]
[339001411,1727116238761,-153.0,0.00032301,2]
[339001412,1727116238770,-153.0,0.00032301,2]
[339001413,1727116238779,-153.0,0.00032301,2]
[339001414,1727116238788,-153.0,0.00032301,2]
[339001415,1727116238798,-155.7,0.00032353,7]
[339001416,1727116238807,-4298.0979043,0.00032443,2]
[339001417,1727116238817,-150.0,0.0003253,2]
[339001418,1727116238826,-1000.0,0.00032629,2]
[339001419,1727116238835,-577.52724099,0.00032636,2]
[339001420,1727116238844,-1000.0,0.00032638,2]
[339001421,1727116238853,-1963.79977213,0.00032645,2]
[339001422,1727116238863,-1000.0,0.00032655,2]
[339001423,1727116238872,-1000.0,0.00032661,2]
[339001424,1727116238882,-577.52724099,0.00032663,2]
[339001425,1727116238891,-1000.0,0.0003268,2]
[339001426,1727116238901,-577.52724099,0.00032691,2]
[339001427,1727116238910,-1000.0,0.00032692,2]
[339001428,1727116238919,-163.59,0.00032715,3]
[339001429,1727116238930,-817.99,0.00032715,3]
[339001430,1727116238939,-321.15,0.00032716,3]
[339001431,1727116238949,-160.58,0.00032716,3]
[339001432,1727116238961,-481.75,0.00032716,3]
[339001433,1727116238970,-577.52724099,0.00032718,2]
[339001434,1727116238980,-500.0,0.00032725,2]
[339001435,1727116238990,-344.46700304,0.00032725,2]
[339001436,1727116238999,-401.13540659,0.00032725,2]
[339001437,1727116239008,-183.03751038,0.00032725,2]
[339001438,1727116239018,-500.0,0.00032725,2]
[339001439,1727116239027,-500.0,0.00032725,2]
[339001440,1727116239037,-561.90088999,0.00032725,2]
[339001441,1727116239046,-1284.62,0.00032725,3]
[339001442,1727116239056,-642.31,0.00032725,3]
[339001443,1727116239065,-85529.001602,0.00032726,4]
[339001444,1727116239075,-7568.49381594,0.00032726,4]
[339001445,1727116239085,-478.79470768,0.00032732,2]
[339001446,1727116239095,-165.0558695,0.0003274,2]
[339001447,1727116239105,-151.0,0.0003274,120]
[339001448,1727116239115,-586.66743907,0.00032745,2]
[339001449,1727116239124,-577.52724099,0.00032745,2]
[339001450,1727116239134,-28509.6672007,0.00032745,4]
[339001451,1727116239143,-2522.83127198,0.00032745,4]
[339001452,1727116239153,-947.26115113,0.00032746,2]
[339001453,1727116239162,-500.0,0.00032755,2]
[339001454,1727116239172,-18340.93424395,0.00032755,5]
[339001455,1727116239182,-10245.20426792,0.00032773,120]
[339001456,1727116239191,-159.70308505,0.00032773,30]
[339001457,1727116239201,-57019.3344014,0.0003278,4]
[339001458,1727116239211,-5045.66254396,0.0003278,4]
[339001459,1727116239220,-150.112233,0.000328,7]
[339001460,1727116239230,-150.112233,0.000328,7]
[339001461,1727116239239,-150.112234,0.000328,6]
[339001462,1727116239249,-150.0,0.000328,2]
[339001463,1727116239258,-150.112233,0.000328,5]
[339001464,1727116239267,-150.112233,0.000328,7]
[339001465,1727116239276,-154.164151,0.000328,5]
[339001466,1727116239286,-1000.0,0.00032825,2]
[339001467,1727116239295,-57019.3344014,0.00032826,4]
[339001468,1727116239304,-5045.66254396,0.00032826,5]
[339001469,1727116239314,-28509.6672007,0.00032835,4]
[339001470,1727116239324,-5045.66254396,0.00032835,5]
[339001471,1727116239333,-5045.66254396,0.00032836,5]
[339001472,1727116239342,-2522.83127198,0.00032836,5]
[339001473,1727116239352,-2522.83127198,0.00032836,5]
[339001474,1727116239361,-436.551452,0.00032845,7]
[339001475,1727116239370,-436.551452,0.00032845,7]
[339001476,1727116239379,-436.551452,0.00032845,7]
[339001477,1727116239388,-436.551452,0.00032845,7]
[339001478,1727116239397,-151.0,0.00032845,7]
[339001479,1727116239411,-151.0,0.00032845,7]
[339001480,1727116239565,-219.965856,0.00032845,7]
[339001481,1727116239577,-219.965856,0.00032845,7]
[339001482,1727116239586,-219.965856,0.00032845,7]
[339001483,1727116239595,-219.965856,0.00032845,7]
[339001484,1727116239605,-151.0,0.00032845,7]
[339001485,1727116239614,-3113.460144,0.00032845,7]
[339001486,1727116239623,-3113.460144,0.00032845,7]
[339001487,1727116239632,-261.713653,0.00032845,7]
[339001488,1727116239641,-261.713653,0.00032845,7]
[339001489,1727116239650,-614.270381,0.00032845,7]
[339001490,1727116239660,-614.270381,0.00032845,7]
[339001491,1727116239669,-5379.153314,0.00032845,7]
[339001492,1727116239679,-2163.986707,0.00032845,7]
[339001493,1727116239689,-5379.153314,0.00032845,7]
[339001494,1727116239698,-2163.986707,0.00032845,7]
[339001495,1727116239707,-245.077201,0.00032845,7]
[339001496,1727116239716,-194.401146,0.00032845,7]
[339001497,1727116239726,-151.639691,0.00032845,7]
[339001498,1727116239735,-245.077201,0.00032845,7]
[339001499,1727116239744,-151.639691,0.00032845,7]
[339001500,1727116239753,-194.401146,0.00032845,7]
[339001501,1727116239762,-879.025848,0.00032845,7]
[339001502,1727116239771,-879.025848,0.00032845,7]
[339001503,1727116239780,-593.500598,0.00032845,7]
[339001504,1727116239789,-593.500598,0.00032845,7]
[339001505,1727116239799,-151.0,0.00032845,7]
[339001506,1727116239808,-151.0,0.00032845,7]
[339001507,1727116239817,-681.10057,0.00032845,7]
[339001508,1727116239827,-681.10057,0.00032845,7]
[339001509,1727116239837,-151.0,0.00032845,7]
[339001510,1727116239846,-151.0,0.00032845,7]
[339001511,1727116239856,-939.091462,0.00032845,7]
[339001513,1727116239865,-939.091462,0.00032845,7]
[339001515,1727116239875,-478.866277,0.00032845,7]
[339001516,1727116239885,-478.866277,0.00032845,7]
[339001517,1727116239895,-905.634175,0.00032845,7]
[339001518,1727116239904,-905.634175,0.00032845,7]
[339001519,1727116239913,-152.050946,0.00032845,7]
[339001520,1727116239923,-163.291148,0.00032845,7]
[339001521,1727116239934,-163.291148,0.00032845,7]
[339001522,1727116239943,-193.601153,0.00032845,7]
[339001523,1727116239953,-193.601153,0.00032845,7]
[339001524,1727116239962,-504.308122,0.00032845,7]
[339001525,1727116239971,-394.357661,0.00032845,7]
[339001527,1727116239980,-504.308122,0.00032845,7]
[339001528,1727116239990,-394.357661,0.00032845,7]
[339001529,1727116240000,-549.40774,0.00032845,7]
[339001531,1727116240009,-549.40774,0.00032845,7]
[339001533,1727116240019,-5821.039476,0.00032845,7]
[339001535,1727116240029,-5821.039476,0.00032845,7]
[339001537,1727116240039,-2522.83127198,0.00032845,5]
[339001538,1727116240049,-2522.83127198,0.00032846,5]
[339001539,1727116240058,-151.0,0.00032846,7]
[339001540,1727116240067,-3113.460144,0.00032846,7]
[339001541,1727116240077,-3113.460144,0.00032846,7]
[339001542,1727116240086,-261.713653,0.00032846,7]
[339001543,1727116240096,-261.713653,0.00032846,7]
[339001544,1727116240105,-2000.0,0.00032846,60]
[339001546,1727116240115,-1632.549123,0.00032846,60]
[339001548,1727116240124,-614.270381,0.00032846,7]
[339001550,1727116240133,-614.270381,0.00032846,7]
[339001552,1727116240143,-5379.153314,0.00032846,7]
[339001554,1727116240152,-2163.986707,0.00032846,7]
[339001555,1727116240162,-5379.153314,0.00032846,7]
[339001557,1727116240173,-2163.986707,0.00032846,7]
[339001559,1727116240183,-245.077201,0.00032846,7]
[339001561,1727116240192,-151.639691,0.00032846,7]
[339001563,1727116240202,-194.401146,0.00032846,7]
[339001565,1727116240211,-245.077201,0.00032846,7]
[339001566,1727116240220,-151.639691,0.00032846,7]
[339001568,1727116240230,-194.401146,0.00032846,7]
[339001570,1727116240239,-879.025848,0.00032846,7]
[339001571,1727116240249,-879.025848,0.00032846,7]
[339001574,1727116240258,-593.500598,0.00032846,7]
[339001576,1727116240278,-593.500598,0.00032846,7]
[339001578,1727116240288,-151.0,0.00032846,7]
[339001579,1727116240299,-151.0,0.00032846,7]
[339001580,1727116240309,-681.10057,0.00032846,7]
[339001581,1727116240319,-681.10057,0.00032846,7]
[339001582,1727116240329,-151.0,0.00032846,7]
[339001583,1727116240338,-151.0,0.00032846,7]
[339001584,1727116240349,-239.360436,0.00032846,7]
[339001585,1727116240359,-939.091462,0.00032846,7]
[339001586,1727116240369,-939.091462,0.00032846,7]
[339001587,1727116240379,-939.091462,0.00032846,7]
[339001588,1727116240389,-939.091462,0.00032846,7]
[339001589,1727116240399,-478.866277,0.00032846,7]
[339001590,1727116240409,-478.866277,0.00032846,7]
[339001591,1727116240420,-478.866277,0.00032846,7]
[339001592,1727116240432,-478.866277,0.00032846,7]
[339001593,1727116240441,-905.634175,0.00032846,7]
[339001594,1727116240451,-905.634175,0.00032846,7]
[339001595,1727116240461,-905.634175,0.00032846,7]
[339001596,1727116240471,-905.634175,0.00032846,7]
[339001597,1727116240483,-163.291148,0.00032846,7]
[339001598,1727116240493,-163.291148,0.00032846,7]
[339001599,1727116240504,-163.291148,0.00032846,7]
[339001600,1727116240515,-163.291148,0.00032846,7]
[339001601,1727116240524,-193.601153,0.00032846,7]
[339001602,1727116240534,-193.601153,0.00032846,7]
[339001603,1727116240543,-193.601153,0.00032846,7]
[339001604,1727116240553,-193.601153,0.00032846,7]
[339001605,1727116240563,-504.308122,0.00032846,7]
[339001606,1727116240573,-504.308122,0.00032846,7]
[339001607,1727116240583,-394.357661,0.00032846,7]
[339001608,1727116240593,-504.308122,0.00032846,7]
[339001609,1727116240602,-504.308122,0.00032846,7]
[339001610,1727116240611,-394.357661,0.00032846,7]
[339001611,1727116240621,-549.40774,0.00032846,7]
[339001612,1727116240631,-549.40774,0.00032846,7]
[339001613,1727116240640,-5821.039476,0.00032846,7]
[339001614,1727116240650,-5821.039476,0.00032846,7]
[339001615,1727116240659,-5821.039476,0.00032846,7]
[339001616,1727116240669,-5821.039476,0.00032846,7]
[339001617,1727116240683,-153.0,0.00032849,2]
[339001618,1727116240697,-153.0,0.00032849,2]
[339001619,1727116240706,-153.0,0.00032849,2]
[339001620,1727116240717,-153.0,0.00032849,2]
[339001621,1727116240726,-153.0,0.00032849,2]
[339001622,1727116240736,-153.0,0.00032849,2]
[339001623,1727116240746,-153.0,0.00032849,2]
[339001624,1727116240756,-153.0,0.00032849,2]
[339001625,1727116240765,-153.0,0.00032849,2]
[339001626,1727116240775,-153.0,0.00032849,2]
[339001627,1727116240784,-436.551452,0.00032855,7]
[339001628,1727116240794,-436.551452,0.00032855,7]
[339001629,1727116240803,-151.0,0.00032855,7]
[339001630,1727116240813,-219.965856,0.00032855,7]
[339001631,1727116240822,-219.965856,0.00032855,7]
[339001632,1727116240832,-410.17205345,0.00032855,2]
[339001633,1727116240841,-12072.69584141,0.00032855,2]
[339001634,1727116240851,-394.357661,0.00032855,7]
[339001635,1727116240860,-394.357661,0.00032855,7]
[339001636,1727116240869,-549.40774,0.00032855,7]
[339001637,1727116240879,-549.40774,0.00032855,7]
[339001638,1727116240888,-151.0,0.00032856,7]
[339001639,1727116240898,-151.0,0.00032856,7]
[339001640,1727116240907,-342.614158,0.00032856,7]
[339001641,1727116240917,-342.614158,0.00032856,7]
[339001642,1727116240929,-342.614158,0.00032856,7]
[339001643,1727116240939,-342.614158,0.00032856,7]
[339001644,1727116240948,-436.551452,0.00032856,7]
[339001645,1727116240958,-436.551452,0.00032856,7]
[339001646,1727116240968,-219.965856,0.00032856,7]
[339001647,1727116240977,-219.965856,0.00032856,7]
[339001648,1727116240987,-635.664489,0.00032856,7]
[339001649,1727116240996,-635.664489,0.00032856,7]
[339001650,1727116241006,-151.0,0.00032856,7]
[339001651,1727116241015,-2680.476769,0.00032856,7]
[339001652,1727116241025,-339.927128,0.00032856,7]
[339001653,1727116241034,-339.927128,0.00032856,7]
[339001654,1727116241043,-338.569769,0.00032856,7]
[339001655,1727116241052,-338.569769,0.00032856,7]
[339001656,1727116241061,-313.505758,0.00032856,7]
[339001657,1727116241070,-192.686273,0.00032856,7]
[339001658,1727116241080,-313.505758,0.00032856,7]
[339001659,1727116241089,-192.686273,0.00032856,7]
[339001660,1727116241098,-1607.297701,0.00032856,7]
[339001661,1727116241107,-151.0,0.00032856,7]
[339001662,1727116241116,-404.316343,0.00032856,7]
[339001663,1727116241125,-151.0,0.00032856,7]
[339001664,1727116241135,-1607.297701,0.00032856,7]
[339001665,1727116241144,-404.316343,0.00032856,7]
[339001666,1727116241154,-151.0,0.00032856,7]
[339001667,1727116241163,-151.0,0.00032856,7]
[339001668,1727116241173,-163.99347,0.00032856,7]
[339001669,1727116241182,-169.743018,0.00032856,7]
[339001670,1727116241191,-163.99347,0.00032856,7]
[339001671,1727116241200,-169.743018,0.00032856,7]
[339001672,1727116241209,-151.0,0.00032856,7]
[339001673,1727116241219,-1576.420932,0.00032856,7]
[339001674,1727116241228,-1576.420932,0.00032856,7]
[339001675,1727116241237,-2180.516889,0.00032856,7]
[339001676,1727116241246,-2180.516889,0.00032856,7]
[339001677,1727116241255,-3113.460144,0.00032856,7]
[339001678,1727116241264,-3113.460144,0.00032856,7]
[339001679,1727116241274,-261.713653,0.00032856,7]
[339001680,1727116241283,-261.713653,0.00032856,7]
[339001681,1727116241294,-432.89281,0.00032856,7]